bitfinex/quotes_ETHUSD_20240717
["timestamp","ask_amount","ask_price","bid_price","bid_amount"]
[1721232843388,0.02923115,3416.7,3415.7,0.55]
[1721232843608,0.02923115,3416.7,3413.6,7.38]
[1721232843609,0.02923115,3416.7,3413.7,2.92935]
[1721232843875,0.02923115,3416.7,3411.6,13.00709963]
[1721232843876,2.92754,3415.9,3414.6,2.92858]
[1721232844094,0.02923115,3415.8,3414.6,2.92858]
[1721232844376,0.02923115,3415.8,3414.4,2.92877]
[1721232844377,3.15446355,3415.8,3414.5,2.92867]
[1721232844580,1.0474251,3415.7,3414.6,2.92859]
[1721232844881,1.0474251,3415.7,3414.0,0.531355]
[1721232844882,1.0182158,3415.6,3414.0,0.531355]
[1721232845053,1.0182158,3415.6,3413.6,2.92945]
[1721232845054,0.57969788,3415.8,3415.2,2.92805]
[1721232845251,1.16099502,3416.2,3415.1,2.92815]
[1721232845252,3.0,3416.1,3415.1,2.92815]
[1721232845595,0.57969788,3416.2,3415.2,2.928]
[1721232845596,0.02923115,3416.0,3415.2,2.928]
[1721232845964,0.02923115,3416.0,3415.3,0.55]
[1721232846546,2.92733,3416.1,3415.3,0.55]
[1721232846823,2.92733,3416.1,3413.6,2.92945]
[1721232846824,2.92775,3415.6,3413.5,2.92946]
[1721232846974,2.92775,3415.6,3414.1,2.92901]
[1721232846975,2.92792,3415.4,3414.1,2.92901]
[1721232847184,0.57969788,3415.7,3413.8,2.92926]
[1721232847494,0.57969788,3415.7,3413.1,2.3267]
[1721232847495,0.57969788,3416.1,3414.2,2.92889]
[1721232847696,1.16099502,3416.4,3413.9,6.00018]
[1721232847697,0.57969788,3416.4,3415.7,2.92764]
[1721232847906,1.47112028,3416.9,3415.7,2.92764]
[1721232847907,0.57969788,3416.9,3415.7,2.92764]
[1721232848276,2.95594115,3416.8,3414.6,2.418]
[1721232848474,3.94478579,3416.7,3415.8,0.55]
[1721232848780,3.94478579,3416.7,3415.5,3.47781]
[1721232848781,2.57419367,3416.6,3415.5,3.47781]
[1721232848981,2.57419367,3416.6,3414.9,5.85662]
[1721232848982,13.59429,3415.0,3414.9,5.85662]
[1721232849170,8.04439,3415.0,3414.9,8.78496]
[1721232849350,6.25690043,3417.3,3415.8,2.92751]
[1721232849351,0.57969788,3417.2,3415.8,2.92751]
[1721232849552,0.02923115,3417.1,3415.9,2.9274]
[1721232849901,0.02923115,3417.1,3415.4,2.92785]
[1721232850107,2.92667,3416.9,3415.6,2.92768]
[1721232850251,0.02923115,3416.8,3415.4,2.92785]
[1721232850605,2.9269,3416.6,3415.0,2.92817]
[1721232850759,0.02923115,3416.5,3415.4,2.92789]
[1721232851160,0.57969788,3416.7,3416.0,2.92734]
[1721232851475,2.92626,3417.4,3416.1,2.92725]
[1721232851670,5.38709,3417.3,3416.2,2.9272]
[1721232852285,2.4608,3417.3,3416.3,2.9271]
[1721232852622,0.24608,3417.3,3416.5,2.92696]
[1721232852763,2.92586,3417.8,3416.5,5.85392]
[1721232853165,5.87603788,3418.0,3416.7,2.92679]
[1721232853390,5.87603788,3418.0,3416.6,0.55]
[1721232853391,3.94340734,3417.9,3416.6,2.9268]
[1721232853605,3.94340734,3417.9,3416.7,2.92679]
[1721232853606,2.92577,3417.9,3416.7,2.92679]
[1721232853789,0.02923115,3417.8,3416.7,2.92675]
[1721232853993,0.02923115,3417.8,3416.8,3.4767]
[1721232854194,0.02923115,3417.8,3416.3,0.55]
[1721232854389,0.02923115,3417.9,3416.4,0.55]
[1721232854569,0.02923115,3417.9,3417.1,2.92644]
[1721232854968,0.02923115,3417.9,3416.6,2.92683]
[1721232855172,0.23998312,3417.8,3416.9,2.92662]
[1721232855423,0.23998312,3417.8,3416.7,3.47679]
[1721232855424,0.02923115,3417.7,3416.8,2.92668]
[1721232855571,0.02923115,3417.7,3416.9,2.92661]
[1721232855882,0.23998312,3417.8,3417.2,2.92636]
[1721232856224,0.23998312,3417.8,3416.4,0.55]
[1721232856225,0.02923115,3417.7,3416.4,0.55]
[1721232856371,0.02923115,3417.7,3416.4,2.92697]
[1721232856802,0.02923115,3417.7,3416.2,2.92717]
[1721232856803,2.92612,3417.5,3416.2,2.92717]
[1721232857064,3.0,3417.9,3416.5,2.92697]
[1721232857065,0.02923115,3417.4,3416.5,2.92697]
[1721232857295,0.02923115,3417.4,3416.6,2.92683]
[1721232857507,0.02923115,3417.4,3416.5,2.92697]
[1721232857667,3.0,3417.8,3416.8,2.92669]
[1721232858017,3.0,3417.8,3415.5,2.92781]
[1721232858018,5.3706,3418.0,3416.4,2.927]
[1721232858168,5.3706,3418.0,3415.9,2.92746]
[1721232858169,2.3706,3418.0,3417.1,2.92638]
[1721232858709,3.0,3418.3,3417.3,2.92624]
[1721232858927,2.92531,3418.5,3417.3,2.92624]
[1721232859204,3.0,3418.4,3417.3,2.92624]
[1721232859368,2.3993,3418.7,3417.4,0.55]
[1721232859810,0.57969788,3419.1,3417.4,3.47615]
[1721232859970,0.02923115,3419.1,3417.9,2.92575]
[1721232860173,0.60892903,3419.2,3417.4,0.55]
[1721232860516,0.60892903,3419.2,3416.8,2.3441]
[1721232860517,0.02923115,3419.1,3418.3,2.92541]
[1721232860676,0.02923115,3419.1,3418.4,2.92533]
[1721232861412,0.02923115,3419.3,3417.9,2.92569]
[1721232861714,3.19207427,3419.2,3418.0,0.55]
[1721232861902,2.92476,3419.1,3418.0,3.47568]
[1721232862087,3.19207427,3419.2,3414.4,0.90427093]
[1721232862088,2.4222,3418.8,3414.4,0.90427093]
[1721232862286,0.23811312,3419.2,3413.7,4.20448958]
[1721232862287,2.92688,3416.6,3413.7,2.3839]
[1721232862602,0.02923115,3416.5,3415.3,2.92799]
[1721232862782,5.34928,3416.4,3413.7,2.3839]
[1721232862987,0.02923115,3416.3,3414.5,2.92867]
[1721232863175,2.95639115,3416.3,3414.8,2.92842]
[1721232863371,0.02923115,3416.2,3414.9,2.92833]
[1721232863576,0.02923115,3416.2,3415.0,2.92824]
[1721232863883,0.02923115,3416.2,3414.3,2.9288]
[1721232864090,0.02923115,3416.2,3415.0,2.92825]
[1721232865002,2.95645115,3416.3,3415.0,2.92825]
[1721232865172,2.92715,3416.3,3415.1,2.92815]
[1721232865376,0.02923115,3416.2,3415.1,2.92815]
[1721232865573,2.95647115,3416.2,3414.9,2.9283]
[1721232866024,2.95647115,3416.2,3415.0,2.92823]
[1721232866685,0.02923115,3416.1,3415.1,2.92815]
[1721232867195,2.4222,3416.4,3415.2,2.92807]
[1721232867513,2.4222,3416.4,3415.3,0.55]
[1721232868176,2.95643115,3416.3,3415.3,0.55]
[1721232868420,2.95643115,3416.3,3414.7,2.92845]
[1721232868421,2.92723,3416.2,3414.7,2.92845]
[1721232868626,2.9274,3416.0,3414.8,0.55]
[1721232868926,0.02923115,3415.9,3414.8,3.47838]
[1721232870012,0.02923115,3415.9,3414.8,0.55]
[1721232870324,2.9274,3416.0,3414.8,3.47841]
[1721232870477,0.32489427,3415.9,3414.9,2.92833]
[1721232870679,0.32489427,3415.9,3415.0,0.55]
[1721232871178,0.29566312,3415.9,3415.0,3.47818]
[1721232871725,0.29566312,3415.9,3415.1,2.92816]
[1721232872031,2.4222,3416.4,3415.0,0.55]
[1721232872032,0.86980043,3417.1,3415.2,0.55]
[1721232872180,0.02923115,3416.9,3415.2,2.92807]
[1721232872379,0.02923115,3416.9,3414.9,2.3302]
[1721232872380,2.92716,3416.3,3415.3,0.55]
[1721232872602,0.02923115,3416.2,3415.3,0.55]
[1721232873391,0.02923115,3416.2,3415.3,3.47799]
[1721232873577,0.02923115,3416.4,3415.3,3.47799]
[1721232873784,0.29562312,3416.3,3415.3,3.47799]
[1721232873985,0.02923115,3416.2,3415.3,0.55]
[1721232874330,0.02923115,3416.2,3415.2,0.55]
[1721232874497,0.02923115,3416.2,3415.2,3.47808]
[1721232874685,0.02923115,3416.2,3415.2,0.55]
[1721232874881,0.02923115,3416.2,3415.3,2.92799]
[1721232875131,0.02923115,3416.2,3415.4,0.55]
[1721232875419,3.0,3416.8,3414.4,3.071]
[1721232875623,0.02923115,3416.7,3414.5,0.833014]
[1721232875849,2.92689,3416.6,3415.4,2.92789]
[1721232876057,3.02923115,3416.5,3415.5,2.92776]
[1721232876208,0.02923115,3416.5,3415.5,2.92776]
[1721232876555,0.02923115,3416.5,3415.4,2.92782]
[1721232876717,5.95621115,3416.5,3415.2,2.92808]
[1721232876947,2.95621115,3416.5,3415.2,2.92808]
[1721232877509,2.9272,3416.3,3415.1,2.92816]
[1721232877722,2.95648115,3416.2,3415.1,2.92816]
[1721232877922,0.29564812,3416.1,3415.1,2.92816]
[1721232878220,0.02923115,3416.0,3415.1,2.92816]
[1721232878743,0.02923115,3416.0,3414.9,2.92833]
[1721232879047,2.95664115,3416.0,3413.5,2.2875]
[1721232879230,2.95664115,3416.0,3413.6,0.521713]
[1721232879231,0.49195976,3415.9,3413.6,0.521713]
[1721232879551,2.92791,3415.4,3414.3,2.92885]
[1721232879756,0.02923115,3415.3,3414.3,2.92885]
[1721232880056,0.49195976,3415.9,3414.6,2.92858]
[1721232880346,0.49195976,3415.9,3415.1,2.92809]
[1721232880647,0.02923115,3416.2,3415.0,2.92818]
[1721232880814,2.95646115,3416.2,3415.0,2.92818]
[1721232881021,2.95646115,3416.2,3414.8,2.9284]
[1721232881252,0.02923115,3416.2,3413.4,5.92959]
[1721232881468,2.92775,3415.6,3414.4,2.92871]
[1721232881745,2.92794,3415.4,3414.3,2.92884]
[1721232882046,0.02923115,3415.3,3414.3,2.92884]
[1721232882217,0.02923115,3415.3,3413.8,2.92926]
[1721232882218,2.3441,3415.2,3413.8,2.92926]
[1721232882405,2.92845,3414.8,3413.5,2.92952]
[1721232882614,0.02923115,3414.7,3413.7,2.92937]
[1721232883342,2.92845,3414.8,3413.8,2.92923]
[1721232883343,0.02923115,3414.8,3413.8,2.92923]
[1721232883558,2.3441,3415.2,3414.1,2.92894]
[1721232883844,2.3441,3415.2,3413.9,2.92919]
[1721232883845,2.3441,3415.2,3414.2,2.92893]
[1721232884044,0.57969788,3415.7,3414.6,2.92854]
[1721232884204,1.01819689,3415.7,3414.8,2.92837]
[1721232884407,1.4741878,3416.3,3414.0,2.3128]
[1721232884408,3.50677788,3416.4,3415.1,2.9281]
[1721232884648,4.38285671,3416.3,3415.2,2.92807]
[1721232884805,3.36480783,3416.3,3415.2,2.92807]
[1721232885008,0.43765783,3416.3,3415.2,2.92807]
[1721232885219,1.01735571,3416.3,3415.2,2.92807]
[1721232885468,1.0180136,3416.2,3415.3,2.92796]
[1721232885741,1.01735571,3416.3,3415.2,2.92807]
[1721232885742,0.46688898,3416.3,3415.2,2.92807]
[1721232886040,0.46688898,3416.3,3415.1,2.92815]
[1721232886041,0.3791812,3416.2,3415.1,2.92815]
[1721232886260,2.92753,3415.9,3414.7,2.92845]
[1721232886465,0.02923115,3415.8,3414.7,2.92845]
[1721232886660,5.55891005,3416.2,3414.8,2.92841]
[1721232886823,2.92738,3416.1,3414.9,2.92831]
[1721232887013,0.46688898,3416.0,3414.9,2.92831]
[1721232887721,0.43765783,3416.0,3414.9,2.92831]
[1721232887924,0.02923115,3415.9,3414.9,2.92831]
[1721232888119,0.57969788,3416.2,3415.2,2.92808]
[1721232888325,0.57969788,3416.2,3415.0,0.55]
[1721232888326,0.02923115,3416.1,3415.0,2.92819]
[1721232888514,0.02923115,3416.1,3415.1,2.92815]
[1721232888916,0.02923115,3416.1,3415.2,2.92806]
[1721232889148,0.44058695,3416.1,3415.2,2.92806]
[1721232889554,0.02923115,3416.0,3415.0,2.92823]
[1721232890792,0.57969788,3416.2,3415.4,2.92783]
[1721232891251,0.86980043,3416.4,3415.4,2.92783]
[1721232891252,0.60892903,3416.4,3415.4,2.92783]
[1721232891455,0.17991552,3416.3,3415.4,2.92783]
[1721232891624,0.17991552,3416.3,3415.2,2.92807]
[1721232891625,0.57969788,3416.7,3415.9,2.9274]
[1721232892019,3.70565458,3417.1,3415.9,2.9274]
[1721232892020,0.57969788,3417.1,3415.9,2.9274]
[1721232892256,4.08713502,3417.5,3415.2,2.4423]
[1721232892257,2.96239788,3417.4,3416.3,2.92712]
[1721232892459,1.0176638,3417.3,3416.3,2.92712]
[1721232892666,2.3827,3417.4,3416.3,2.92712]
[1721232892870,2.3827,3417.4,3416.4,2.92705]
[1721232893719,2.3827,3417.4,3415.9,2.92743]
[1721232893915,0.57969788,3417.5,3416.8,2.92664]
[1721232894148,0.57969788,3417.5,3416.0,0.55]
[1721232894149,0.57969788,3417.9,3416.2,0.05852585]
[1721232894363,0.57969788,3418.1,3417.2,2.92628]
[1721232894516,4.08628502,3418.5,3417.2,2.92628]
[1721232894517,2.92535,3418.4,3417.2,2.92628]
[1721232894715,2.92551,3418.2,3417.0,2.92652]
[1721232894920,2.95474115,3418.2,3417.1,0.55]
[1721232895115,3.1232923,3418.1,3417.1,0.55]
[1721232895367,0.02923115,3418.1,3417.1,2.37645]
[1721232895571,0.57969788,3418.4,3417.3,5.85256]
[1721232895864,2.95466115,3418.3,3417.2,2.92636]
[1721232896154,2.95466115,3418.3,3416.9,0.55]
[1721232896155,0.57969788,3418.5,3417.5,2.92606]
[1721232896370,0.57969788,3418.5,3417.6,0.55]
[1721232896664,0.60892903,3418.6,3417.6,0.55]
[1721232896966,3.79491043,3418.7,3416.7,2.92679]
[1721232896967,0.02923115,3418.4,3416.7,2.92679]
[1721232897252,3.94285577,3418.3,3416.8,3.47671]
[1721232897465,2.92543,3418.3,3417.1,2.92645]
[1721232897619,0.57969788,3418.4,3417.1,2.92645]
[1721232897620,2.92551,3418.2,3417.1,2.92645]
[1721232898451,2.9256,3418.1,3417.1,2.92645]
[1721232898654,2.92535,3418.4,3417.1,2.92645]
[1721232898871,3.0,3418.3,3417.2,0.55]
[1721232899070,0.57969788,3418.6,3417.4,2.92613]
[1721232899289,2.86649788,3418.9,3417.6,2.92602]
[1721232899565,1.16099502,3419.2,3418.0,2.92561]
[1721232899566,2.92466,3419.2,3418.0,2.92561]
[1721232899872,0.02923115,3419.2,3417.3,0.55]
[1721232900081,2.92482,3419.1,3417.9,2.92569]
[1721232900284,2.92462,3419.3,3418.0,3.47568]
[1721232900448,2.92462,3419.3,3418.1,2.92552]
[1721232900649,2.92441,3419.5,3418.2,3.47551]
[1721232900650,2.92466,3419.2,3418.2,3.47551]
[1721232900849,2.94269788,3419.6,3417.4,0.62869321]
[1721232901173,2.94269788,3419.6,3415.8,2.35658963]
[1721232901174,5.21913,3419.0,3416.5,2.3186]
[1721232901357,2.9256,3418.1,3416.8,2.92671]
[1721232901559,2.9256,3418.1,3416.0,2.92734]
[1721232901560,0.02923115,3418.0,3416.0,2.92734]
[1721232901876,0.02923115,3418.0,3416.4,2.92704]
[1721232901877,2.92621,3417.4,3416.4,2.92704]
[1721232902079,2.92621,3417.4,3415.9,2.92746]
[1721232902080,2.95544115,3417.4,3415.9,2.92746]
[1721232902251,2.92638,3417.2,3416.1,2.92726]
[1721232902580,2.92638,3417.2,3415.9,3.449506]
[1721232902581,2.95561115,3417.2,3416.0,2.92735]
[1721232902742,2.92648,3417.1,3415.9,3.449496]
[1721232902936,0.36048087,3417.3,3416.1,2.92728]
[1721232902937,3.28676087,3417.3,3416.1,2.92728]
[1721232903137,2.87399788,3417.7,3416.5,2.92695]
[1721232903441,3.0,3417.6,3416.5,2.92695]
[1721232903667,2.2943,3417.7,3416.5,2.92695]
[1721232903853,0.02923115,3417.6,3416.3,2.92705]
[1721232904054,0.02923115,3417.6,3416.1,2.92728]
[1721232904376,0.23235312,3417.5,3416.2,0.55]
[1721232904681,0.02923115,3417.4,3416.2,0.55]
[1721232904882,0.02923115,3417.4,3416.1,0.55]
[1721232905069,0.23235312,3417.5,3416.1,0.55]
[1721232905380,0.23235312,3417.5,3415.9,0.522046]
[1721232905381,3.0,3417.6,3416.5,2.9269]
[1721232905588,0.57969788,3418.1,3416.7,2.92673]
[1721232905882,0.57969788,3418.8,3417.4,2.92619]
[1721232906041,3.12311193,3418.8,3417.4,2.92619]
[1721232906241,3.12311193,3418.8,3417.2,2.92635]
[1721232906242,0.57969788,3419.0,3417.5,3.4761]
[1721232906478,1.01731925,3419.0,3417.6,2.92597]
[1721232906646,2.92477,3419.1,3417.7,0.55]
[1721232906850,2.92477,3419.1,3417.0,2.9265]
[1721232906851,2.92541,3418.4,3416.2,3.071]
[1721232907168,2.3238,3417.9,3416.6,0.55]
[1721232907338,2.92621,3417.4,3416.2,2.9272]
[1721232907539,2.3238,3417.9,3415.4,2.2848]
[1721232907540,0.32185215,3417.3,3415.4,2.2848]
[1721232907883,0.32185215,3417.3,3415.7,2.92763]
[1721232907884,2.92665,3416.9,3415.7,2.92763]
[1721232908180,0.86980043,3417.4,3414.7,3.071]
[1721232908181,0.02923115,3416.8,3415.5,2.92775]
[1721232908490,2.92707,3416.4,3414.8,2.92835]
[1721232908641,2.92728,3416.2,3414.8,2.92835]
[1721232908836,2.92728,3416.2,3414.1,2.92897]
[1721232908837,0.02923115,3416.1,3414.9,0.292835]
[1721232909077,3.22293112,3416.2,3414.9,0.292835]
[1721232909078,2.9275,3415.9,3414.9,0.292835]
[1721232909509,2.92749,3415.9,3414.9,3.221175]
[1721232909846,0.29565112,3416.2,3414.9,3.221175]
[1721232910075,2.9272,3416.3,3415.1,2.92811]
[1721232910244,2.92728,3416.2,3414.9,0.292835]
[1721232910581,2.9272,3416.3,3415.0,2.92825]
[1721232910780,2.92698,3416.5,3415.2,2.92807]
[1721232910980,2.92722,3416.3,3415.2,2.92807]
[1721232911481,2.92722,3416.3,3414.9,0.292835]
[1721232911482,2.95646115,3416.2,3415.3,0.55]
[1721232911640,5.88375115,3416.2,3415.0,0.55]
[1721232911838,2.92757,3415.8,3413.2,2.92976]
[1721232912052,2.92791,3415.4,3414.2,2.92894]
[1721232912254,2.4998,3415.5,3414.2,2.92894]
[1721232912255,0.02923115,3415.3,3414.3,2.92883]
[1721232912471,5.42766,3415.5,3414.5,2.92863]
[1721232912472,2.4998,3415.5,3414.5,2.92863]
[1721232912981,0.02923115,3415.4,3414.5,2.92861]
[1721232913194,2.4998,3415.5,3414.5,2.92861]
[1721232913409,2.92802,3415.3,3414.0,2.92909]
[1721232913616,2.92802,3415.3,3413.3,2.3873]
[1721232913617,2.92821,3415.1,3413.3,2.3873]
[1721232913785,2.4998,3415.5,3413.3,2.3873]
[1721232913786,2.4998,3415.5,3413.5,3.085]
[1721232914123,3.79734043,3415.9,3415.0,2.92818]
[1721232914124,0.57969788,3415.9,3415.0,2.92818]
[1721232914280,2.92722,3416.3,3415.0,2.92824]
[1721232914479,3.0,3416.2,3415.0,2.92824]
[1721232914673,3.0,3416.2,3415.1,2.9281]
[1721232914901,3.0,3416.2,3415.2,3.47806]
[1721232915522,3.0,3416.2,3415.2,0.55]
[1721232915735,3.0,3416.2,3414.9,2.92833]
[1721232916014,3.0,3416.2,3414.7,2.92849]
[1721232916015,2.92754,3415.9,3414.7,2.92849]
[1721232916220,2.92754,3415.9,3414.8,2.92842]
[1721232916520,2.95677115,3415.9,3414.8,2.92842]
[1721232916671,2.92722,3416.3,3414.4,2.4079]
[1721232916879,2.92722,3416.3,3415.1,2.92815]
[1721232917087,5.95645115,3416.2,3414.9,2.92828]
[1721232917287,5.95645115,3416.2,3414.4,2.4079]
[1721232917511,5.95645115,3416.2,3414.0,3.0]
[1721232917512,3.02923115,3416.2,3414.5,2.92866]
[1721232917714,2.92782,3415.6,3414.4,2.92876]
[1721232917914,2.95706115,3415.5,3414.2,2.92888]
[1721232918212,3.50697788,3416.2,3414.1,2.92894]
[1721232918213,2.928,3415.3,3414.3,3.514632]
[1721232918630,0.02923115,3415.2,3413.2,0.05101907]
[1721232918809,2.92879,3414.4,3413.2,2.92972]
[1721232919118,2.92879,3414.4,3412.3,2.73676333]
[1721232919119,0.02923115,3414.3,3413.0,2.92994]
[1721232919418,0.02923115,3414.3,3413.1,2.92982]
[1721232919617,2.9293,3413.8,3412.6,2.93031]
[1721232919913,2.9293,3413.8,3411.7,2.614]
[1721232919914,2.9293,3413.8,3412.7,2.93023]
[1721232920223,2.3452,3414.2,3412.3,2.93057]
[1721232920224,2.95860115,3413.7,3412.3,2.93057]
[1721232920405,2.95860115,3413.7,3411.7,2.614]
[1721232920406,2.95860115,3413.7,3411.9,2.93089]
[1721232920407,2.92962,3413.5,3411.9,2.93089]
[1721232920606,2.92962,3413.5,3412.3,2.93057]
[1721232920607,2.95893115,3413.4,3412.3,2.93057]
[1721232920811,2.92989,3413.1,3412.1,2.93072]
[1721232921008,2.92981,3413.2,3412.1,2.93072]
[1721232921176,2.4888,3413.0,3411.9,2.93091]
[1721232921377,2.4888,3413.0,3411.7,0.2933]
[1721232921378,2.93016,3412.8,3411.7,0.2933]
[1721232921573,0.02923115,3412.7,3411.7,3.22437]
[1721232921793,2.93037,3412.6,3411.7,0.2933]
[1721232921989,2.95963115,3412.5,3411.7,0.2933]
[1721232922527,2.93048,3412.4,3411.7,0.2933]
[1721232922687,0.02923115,3412.3,3411.6,0.2038]
[1721232922891,2.3587,3412.2,3411.6,0.2038]
[1721232923115,2.93109,3411.7,3411.6,0.2038]
[1721232923321,5.89141115,3411.7,3411.6,0.2038]
[1721232923519,5.89141115,3411.7,3410.2,3.26994713]
[1721232923520,2.93117,3411.6,3410.2,3.26994713]
[1721232923837,2.3587,3412.2,3410.2,3.26994713]
[1721232923838,2.3587,3412.2,3410.2,0.33759713]
[1721232924117,2.4577,3412.9,3410.8,5.96685]
[1721232924289,2.4577,3412.9,3411.9,2.93086]
[1721232924628,3.79907043,3413.9,3410.9,2.93175]
[1721232924629,2.4639,3414.0,3411.5,2.467]
[1721232924923,2.95850115,3413.9,3412.7,2.93022]
[1721232925217,2.4639,3414.0,3412.8,2.93013]
[1721232925578,2.4639,3414.0,3412.6,2.9303]
[1721232925579,0.02923115,3413.9,3412.1,2.93068]
[1721232925789,0.02923115,3413.9,3412.3,2.93055]
[1721232925790,2.92952,3413.6,3412.3,2.93055]
[1721232926026,0.02923115,3413.5,3412.3,2.93055]
[1721232926229,2.4639,3414.0,3411.6,3.17782]
[1721232926523,0.02923115,3413.7,3412.7,2.93016]
[1721232926734,0.02923115,3413.7,3411.7,0.55]
[1721232926735,2.92946,3413.6,3411.7,0.55]
[1721232926896,0.02923115,3413.5,3411.7,0.55]
[1721232927084,0.02923115,3413.5,3412.5,2.9304]
[1721232927282,5.39302,3414.0,3412.5,3.516503]
[1721232927283,0.02923115,3413.7,3412.5,3.516503]
[1721232927521,0.02923115,3413.7,3412.7,2.9302]
[1721232927882,0.02923115,3413.7,3412.5,2.9304]
[1721232928084,3.0,3413.9,3411.2,2.9315]
[1721232928085,2.92958,3413.5,3411.2,2.9315]
[1721232928320,2.93007,3412.9,3411.5,2.93126]
[1721232928523,0.02923115,3412.8,3411.5,2.93126]
[1721232928680,0.02923115,3412.8,3410.2,0.33759713]
[1721232928681,2.93075,3412.1,3410.2,0.33759713]
[1721232928887,0.02923115,3412.0,3410.8,2.93181]
[1721232929117,2.93092,3411.9,3410.4,2.93215]
[1721232929330,2.93117,3411.6,3410.6,2.93202]
[1721232929619,2.93135,3411.4,3410.3,2.93228]
[1721232929822,2.33053115,3411.5,3410.4,2.9322]
[1721232929823,0.02923115,3411.3,3410.4,2.9322]
[1721232929995,2.93084,3412.0,3410.8,2.93186]
[1721232930183,2.3013,3412.1,3410.3,0.62023271]
[1721232930388,2.3013,3412.1,3410.2,0.33759713]
[1721232930389,2.3013,3412.7,3411.5,2.93124]
[1721232930592,5.26591,3413.3,3410.7,5.5745]
[1721232930801,5.26591,3413.3,3411.9,2.9309]
[1721232930802,2.3362,3413.3,3411.9,2.9309]
[1721232930999,2.92994,3413.1,3411.9,2.9309]
[1721232931205,2.92997,3413.0,3411.9,2.9309]
[1721232931401,2.3362,3413.3,3412.0,2.93076]
[1721232931703,2.3362,3413.3,3412.1,2.93072]
[1721232931900,2.3362,3413.3,3412.4,2.93048]
[1721232932298,2.3362,3413.3,3411.2,3.085]
[1721232932299,2.95910115,3413.2,3410.8,6.085]
[1721232932498,2.92997,3413.0,3411.8,2.931]
[1721232932701,2.92997,3413.0,3411.5,2.93124]
[1721232932702,2.93025,3412.7,3411.5,2.93124]
[1721232933037,2.93063,3412.3,3411.1,2.93159]
[1721232933197,2.93093,3411.9,3410.8,2.93183]
[1721232933393,2.4008,3412.1,3410.8,2.93183]
[1721232933394,0.02923115,3411.8,3410.8,2.93183]
[1721232933628,2.4008,3412.1,3411.0,2.9316]
[1721232933925,5.33156,3412.1,3410.8,2.93184]
[1721232934127,0.02923115,3412.0,3410.0,2.4435]
[1721232934325,2.4008,3412.1,3410.1,0.2933]
[1721232934528,8.33682,3412.8,3410.5,3.085]
[1721232934733,2.4066,3412.8,3411.5,2.93125]
[1721232934886,2.4066,3412.8,3410.0,2.4435]
[1721232934887,0.02923115,3412.7,3411.2,2.93144]
[1721232935088,0.02923115,3412.7,3411.0,2.93168]
[1721232935289,2.93097,3411.9,3410.8,2.93185]
[1721232935591,2.93109,3411.7,3410.2,0.33759713]
[1721232935812,0.02923115,3411.6,3410.4,2.9322]
[1721232936004,2.4265,3411.5,3410.2,3.26994713]
[1721232936206,5.35778,3411.5,3410.2,3.26994713]
[1721232936555,2.4265,3411.5,3410.6,2.93202]
[1721232936719,2.4265,3411.5,3410.4,2.93213]
[1721232936920,2.4265,3411.5,3410.2,0.33759713]
[1721232937145,2.9308,3412.1,3410.3,0.38564127]
[1721232937312,2.9308,3412.1,3411.0,2.93167]
[1721232937930,2.2979,3412.2,3410.5,2.9321]
[1721232938145,2.2979,3412.2,3411.3,2.93137]
[1721232938350,2.2979,3412.2,3411.1,2.93153]
[1721232938739,0.02923115,3412.1,3410.9,2.93177]
[1721232939059,2.93084,3412.0,3410.8,2.93181]
[1721232939226,2.93084,3412.0,3410.7,2.93192]
[1721232939227,0.02923115,3411.9,3410.7,2.93192]
[1721232939404,2.2979,3412.2,3410.8,2.93183]
[1721232939610,2.2979,3412.2,3411.2,2.93148]
[1721232940025,2.32713115,3412.2,3411.2,2.93148]
[1721232940514,2.32713115,3412.2,3411.3,2.9314]
[1721232940515,2.2979,3412.2,3411.3,2.9314]
[1721232940715,2.95997115,3412.1,3411.0,2.93163]
[1721232940951,2.95997115,3412.1,3410.6,2.93198]
[1721232940952,0.02923115,3412.1,3410.6,2.93198]
[1721232941112,2.93114,3411.7,3410.3,3.25921971]
[1721232941312,5.93055,3412.4,3409.8,0.2933]
[1721232941313,2.365,3411.5,3409.8,0.2933]
[1721232941507,2.365,3411.5,3407.6,10.588]
[1721232941508,2.365,3410.9,3409.2,2.9332]
[1721232941848,2.93229,3410.3,3409.0,2.93339]
[1721232942149,2.365,3410.9,3409.9,2.93257]
[1721232942344,2.365,3410.9,3409.3,2.93311]
[1721232942531,2.365,3410.9,3410.4,2.93217]
[1721232942849,5.28838,3411.6,3410.4,2.93217]
[1721232943033,2.3572,3411.6,3410.4,2.93215]
[1721232943401,2.3572,3411.6,3410.9,2.93175]
[1721232943658,2.3572,3411.6,3409.5,3.085]
[1721232943659,2.2768,3412.9,3411.0,0.05862638]
[1721232943866,2.2768,3412.9,3410.5,2.93204]
[1721232943867,2.50448,3412.9,3411.7,2.93102]
[1721232944157,2.50448,3412.9,3411.9,2.93091]
[1721232944359,2.50448,3412.9,3412.0,2.98941133]
[1721232944658,2.50448,3412.9,3411.2,2.93146]
[1721232944659,2.2768,3412.9,3412.2,2.93059]
[1721232944866,2.2768,3412.9,3411.8,2.93099]
[1721232945167,2.2768,3412.9,3411.3,2.93136]
[1721232945168,2.2768,3412.9,3411.9,2.9309]
[1721232945322,2.2768,3412.9,3411.7,2.93108]
[1721232945323,0.02923115,3412.8,3411.8,2.93099]
[1721232945825,0.02923115,3412.8,3410.2,2.93237]
[1721232945826,2.93029,3412.7,3410.2,2.93237]
[1721232946024,2.93029,3412.7,3411.5,2.93124]
[1721232946025,0.02923115,3412.7,3411.5,2.93124]
[1721232946535,0.02923115,3412.7,3411.6,2.9311]
[1721232946735,2.95951115,3412.7,3411.2,2.93151]
[1721232946939,2.2768,3412.9,3411.8,2.931]
[1721232947164,2.2768,3412.9,3411.9,2.9309]